Cogmind - Beta 13 @@@ ROGUE MODE // 2024.03.15 @ 18:26:09 Player: NitroKuite Result: Destroyed by Y-45 Defender with Heavy Assault Rifle Performance ------------- Evolutions (0) 0 Regions Visited (3) 600 Robots Destroyed (16) 80 Value Destroyed (214) 214 Prototype IDs (0) 0 Alien Tech Used (0) 0 Bonus (0) 0 TOTAL SCORE: 894 Bonus ------- None Cogmind --------- Core Integrity 0/250 Matter 300/300 Energy 99/100 System Corruption 0% Temperature Cool (9) Movement Core (100) Ox1 Location -9/Recycling Parts ------- > --- POWER (1) -------- (None) > --- PROPULSION (2) --- (None) > --- UTILITY (2) ------ Small Storage Unit Weapon Shielding > --- WEAPON (2) ------- (None) > --- INVENTORY (8) ---- Light Treads Light Treads Scrap Engine Seismic Detector Peak State ------------ > --- POWER ------------ Light Ion Engine > --- PROPULSION ------- Wheel Compact Wheel > --- UTILITY ---------- Small Storage Unit Seismic Detector > --- WEAPON ----------- Light Assault Rifle Light Assault Rifle > --- INVENTORY -------- Ion Engine Light Treads Light Treads Wheel [Rating: 7] Favorites ----------- Power Light Ion Engine Engine Light Ion Engine Propulsion Wheel Wheel Wheel Utility Small Storage Unit Device Seismic Detector Storage Small Storage Unit Protection Weapon Shielding Weapon Light Assault Rifle Ballistic Gun Light Assault Rifle Special Melee Weapon Datajack Build | -11 -10 -10 -9 ------- Run | Yrd Mat Sub Rec Slots Evolved . | . . . . Power . | . . . . Propulsion . | . . . . Utility . | . . . . Weapon . | . . . . Parts Attached 14 | 8 2 . 4 Power 2 | 1 1 . . Engine 2 | 1 1 . . Core . | . . . . Reactor . | . . . . Propulsion 5 | 3 . . 2 Treads . | . . . . Leg . | . . . . Wheel 5 | 3 . . 2 Hover . | . . . . Flight . | . . . . Utility 3 | 2 . . 1 Device 1 | 1 . . . Storage 1 | 1 . . . Processor . | . . . . Hackware . | . . . . Protection 1 | . . . 1 Artifact . | . . . . Weapon 4 | 2 1 . 1 Energy Gun . | . . . . Energy Cannon . | . . . . Ballistic Gun 3 | 2 1 . . Ballistic Cannon . | . . . . Launcher . | . . . . Special Weapon . | . . . . Impact Weapon . | . . . . Slashing Weapon . | . . . . Piercing Weapon . | . . . . Special Melee Weapon 1 | . . . 1 Unidentified Prototypes . | . . . . Parts Lost 9 | . . 6 3 Power 1 | . . 1 . Propulsion 4 | . . 2 2 Utility 1 | . . 1 . Weapon 3 | . . 2 1 Highest Loss Streak 6 | . . 6 2 To Critical Strikes . | . . . . Average Slot Usage (%) 86 | . 100 93 58 Engine 9 | . 14 13 . Wheel 25 | . 28 26 22 Device 9 | . 14 12 . Storage 14 | . 14 14 14 Protection 3 | . . . 14 Ballistic Gun 19 | . 28 26 . Special Melee Weapon 2 | . . . 7 Naked Turns . | . . . . Heaviest Build 13 | 11 13 13 7 Greatest Support 26 | 26 20 20 26 Greatest Overweight (x) 3 | . . 3 1 Average Overweight (x) . | . . . . Largest Inventory Capacity 8 | 8 8 8 8 Average Capacity 7 | 7 8 8 8 Most Carried 8 | 8 7 7 6 Average Carried 5 | 3 5 7 4 Final Capacity 8 | 8 8 8 8 Final Carried 7 | 6 7 7 5 Class Distribution -------------------- 100% | Mutant Dominant Class ---------------- Mutant | -10/Materials Mutant | -10/Subcaves Mutant | -9/Recycling Resources | -11 -10 -10 -9 ----------- Run | Yrd Mat Sub Rec Matter Collected 411 | 310 67 11 23 Remotely . | . . . . Salvage Created 417 | 207 196 14 . Parts 36 | 15 18 3 . Haulers Intercepted . | . . . . Recyclers Shooed . | . . . . Parts Field Recycled . | . . . . Retrieved Matter . | . . . . Parts Self-Destructed 1 | . . 1 . Prevented . | . . . . Kills | -11 -10 -10 -9 ------- Run | Yrd Mat Sub Rec Combat Hostiles Destroyed 7 | . 6 1 . Melee 1 | . . 1 . Guns 6 | . 6 . . Classes Destroyed 6 | 3 3 . . Worker 2 | 2 . . . Tunneler 5 | 5 . . . Recycler 1 | 1 . . . Watcher 1 | . 1 . . Swarmer 4 | . 3 1 . Grunt 3 | . 3 . . Best Kill Streak 5 | 5 3 1 . Combat Bots Only 3 | . 3 1 . Max Kills in Single Turn 1 | 1 1 1 . Gunslinging . | . . . . Exploded . | . . . . Melee 1 | . . 1 . Uniques/NPCs Destroyed . | . . . . Combat | -11 -10 -10 -9 -------- Run | Yrd Mat Sub Rec Hostile Shots Fired 119 | . 32 70 17 Missed 35 | . 10 21 4 Damage Taken 860 | . 252 410 198 Core 265 | . 57 133 75 Absorbed by Shields . | . . . . Redirected to Shielding 4 | . . . 4 Core Remaining (%) 100 | 100 . . . Volleys Fired 44 | 20 24 . . Largest 2 | 2 2 . . Hottest 40 | 40 40 . . Shots Fired 88 | 40 48 . . Gun 88 | 40 48 . . Cannon . | . . . . Launcher . | . . . . Special . | . . . . Kinetic 88 | 40 48 . . Thermal . | . . . . Explosive . | . . . . Electromagnetic . | . . . . Robot Hit Streak 8 | 8 6 . . Robot Miss Streak 2 | 1 2 . . Penetration Max . | . . . . Secondary Targets 1 | . 1 . . Max Gunslinging Chain 1 | . 1 . . Shots Hit Robots 62 | 28 26 . 8 Core Hits 28 | 13 13 1 1 Critical Kills . | . . . . Critical Parts Destroyed 1 | . 1 . . Critical Strikes 1 | . 1 . . Destroy 1 | . 1 . . Melee Attacks 8 | . . . 8 Impact . | . . . . Slashing . | . . . . Piercing . | . . . . Sneak Attacks 1 | . . . 1 Combat Hostiles . | . . . . Follow-up Attacks . | . . . . Damage Inflicted 473 | 233 223 9 8 Guns 456 | 233 223 . . Cannons . | . . . . Explosions . | . . . . Melee . | . . . . Ramming 17 | . . 9 8 Kinetic 456 | 233 223 . . Thermal . | . . . . Explosive . | . . . . Electromagnetic . | . . . . Impact . | . . . . Slashing . | . . . . Piercing . | . . . . Highest Corruption . | . . . . Average Corruption . | . . . . Corruption Purged . | . . . . Corruption Blocked . | . . . . Overload Shots . | . . . . Overflow Damage . | . . . . Projectiles . | . . . . Explosions . | . . . . Melee . | . . . . Knockbacks . | . . . . Impact . | . . . . Kinetic . | . . . . Secondary . | . . . . Self-Inflicted Damage 8 | . . 4 4 Shots . | . . . . Rammed 2 | . . 1 1 Targets Rammed 2 | . . 1 1 Kicked . | . . . . Crushed . | . . . . Highest Temperature 31 | . 31 . 2 Average Temperature 12 | . 13 . 2 Received Heat Transfer 363 | . 126 147 90 Siege Activations . | . . . . Robots Corrupted . | . . . . Combat Hostiles . | . . . . Parts Fried . | . . . . Impact Corruptions . | . . . . Robots Melted . | . . . . Combat Hostiles . | . . . . Parts Melted . | . . . . Heat Transferred . | . . . . Parts Sabotaged . | . . . . Parts Stolen . | . . . . Parts Stripped . | . . . . Power Chain Reactions . | . . . . Alert | -11 -10 -10 -9 ------- Run | Yrd Mat Sub Rec Peak Influence 256 | 40 248 . 256 Initial 250 | . 26 . 250 Average 99 | 14 147 . 124 Maximum Alert Level 1 | . 1 . 1 Low Security (%) 80 | 100 65 . 82 Level 1 19 | . 34 . 17 Level 2 . | . . . . Level 3 . | . . . . Level 4 . | . . . . Level 5 . | . . . . High Security . | . . . . Max Security . | . . . . Squads Dispatched . | . . . . Investigation . | . . . . Extermination . | . . . . Reinforcement . | . . . . Assault . | . . . . Garrison . | . . . . Intercept . | . . . . Searches Triggered . | . . . . Construction Impeded . | . . . . Haulers Reinforced . | . . . . Active Scanning Responses . | . . . . Cargo Convoy Interrupts . | . . . . Stealth | -11 -10 -10 -9 --------- Run | Yrd Mat Sub Rec Distress Signals 2 | . 2 . . Communications Jammed . | . . . . Distress Signals . | . . . . Times Spotted 53 | . 12 40 1 Peak Tracking Total 10 | . 4 10 1 Tactical Retreats 2 | . 1 1 . Traps | -11 -10 -10 -9 ------- Run | Yrd Mat Sub Rec Traps Triggered . | . . . . Indirectly . | . . . . Trap Hack Attempts . | . . . . Triggered . | . . . . Disarmed . | . . . . Reprogrammed . | . . . . Reused . | . . . . Traps Extracted . | . . . . Installed . | . . . . Triggered . | . . . . Machines | -11 -10 -10 -9 ---------- Run | Yrd Mat Sub Rec Machines Disabled . | . . . . Max in Single Turn . | . . . . Machines Repaired . | . . . . Machines Dismantled . | . . . . Machines Sabotaged . | . . . . Overloaded Fab Kills . | . . . . Hacking | -11 -10 -10 -9 --------- Run | Yrd Mat Sub Rec Machines Accessed 8 | . 3 . 5 Terminals 5 | . 2 . 3 Fabricators . | . . . . Repair Stations . | . . . . Recycling Units 3 | . 1 . 2 Scanalyzers . | . . . . Garrison Access . | . . . . Total Hacks 25 | . 10 . 15 Successful 17 | . 7 . 10 Failed 8 | . 3 . 5 Catastrophic 1 | . . . 1 Database Lockouts . | . . . . Manual 5 | . . . 5 Terminals 18 | . 7 . 11 Fabricators . | . . . . Repair Stations . | . . . . Recycling Units 7 | . 3 . 4 Scanalyzers . | . . . . Garrison Access . | . . . . Terminal Hacks 10 | . 4 . 6 Record 6 | . 4 . 2 Part Schematic 1 | . . . 1 Alert Level 1 | . . . 1 Unreport Threat 1 | . . . 1 Zone Layout 1 | . . . 1 Fabricator Hacks . | . . . . Repair Station Hacks . | . . . . Recycling Unit Hacks 7 | . 3 . 4 Recycle Component 1 | . 1 . . Process 3 | . . . 3 Report Inventory 1 | . . . 1 Retrieve Matter 1 | . 1 . . Retrieve Components 1 | . 1 . . Scanalyzer . | . . . . Garrison Access Hacks . | . . . . Unauthorized Hacks . | . . . . Terminals . | . . . . Fabricators . | . . . . Repair Stations . | . . . . Recycling Units . | . . . . Scanalyzers . | . . . . Garrison Access . | . . . . Data Cores Recovered . | . . . . Used . | . . . . Hacking Detections 4 | . 1 . 3 Full Trace Events 1 | . . . 1 Feedback Events . | . . . . Feedback Blocked . | . . . . Robot Schematics Acquired . | . . . . Robots Built . | . . . . Authchips . | . . . . Time . | . . . . Total Robot Build Rating . | . . . . Part Schematics Acquired 1 | . . . 1 Parts Built . | . . . . Authchips . | . . . . Time . | . . . . Total Part Build Rating . | . . . . Parts Repaired . | . . . . Time . | . . . . Parts Recycled 1 | . 1 . . Recycled Matter 9 | . . . 9 Retrieved Matter . | . . . . Retrieved Components 1 | . 1 . . Parts Scanalyzed . | . . . . Part Schematics Acquired . | . . . . Parts Damaged . | . . . . Bothacking | -11 -10 -10 -9 ------------ Run | Yrd Mat Sub Rec Used RIF Installer . | . . . . Robots Hacked 2 | . . . 2 Non-combat 1 | . . . 1 Combat 1 | . . . 1 Robot Hacks Applied 2 | . . . 2 parse_system 1 | . . . 1 find_recycling 1 | . . . 1 Relay Couplers Released . | . . . . Fabnet Peak Effective % . | . . . . Robots Rewired . | . . . . Allies Hacked . | . . . . Hacks Repelled . | . . . . Allies | -11 -10 -10 -9 -------- Run | Yrd Mat Sub Rec Total Allies . | . . . . Largest Group . | . . . . Highest-Rated Group . | . . . . Highest-Rated Ally . | . . . . Total Orders . | . . . . Ally Attacks . | . . . . Total Damage . | . . . . Kills . | . . . . Allies Corrupted . | . . . . Allies Melted . | . . . . Intel | -11 -10 -10 -9 ------- Run | Yrd Mat Sub Rec Robot Analysis Total . | . . . . Derelict Logs Recovered . | . . . . Drone Launches . | . . . . Drone Recoveries . | . . . . Exploration | -11 -10 -10 -9 ------------- Run | Yrd Mat Sub Rec Turns Passed 799 | 203 281 145 170 Spaces Moved 680 | 148 207 150 175 Core 19 | 10 . 6 3 Treads . | . . . . Legs . | . . . . Wheels 661 | 138 207 144 172 Hover . | . . . . Flight . | . . . . Fastest Speed 50 | 50 80 80 80 Average Speed 83 | 86 80 82 86 Slowest Speed 200 | 90 80 200 100 Overloaded Moves . | . . . . Propulsion Burnouts . | . . . . Robots Hopped . | . . . . Cave-ins Triggered . | . . . . Exploration Rate (%) 22 | 7 29 15 39 Regions Visited 3 Branch Regions 2 Pre-discovered Areas . | . . . . Known Exits Taken . | . . . . Unknown Exits Taken 3 | 1 1 1 . Scrap Searched 1 | . . 1 . Spaces Dug . | . . . . Terrain Destroyed . | . . . . Melee . | . . . . Projectile . | . . . . AOE . | . . . . Terrain Rammed . | . . . . Walls Destroyed . | . . . . Machines Disabled . | . . . . Actions | -11 -10 -10 -9 --------- Run | Yrd Mat Sub Rec Total 831 | 188 283 170 190 Wait 68 | 1 47 20 . Move 677 | 147 206 149 175 Hop . | . . . . Pick Up 14 | 10 3 . 1 Fast Attach 5 | 5 . . . Attach 6 | 2 . . 4 Detach . | . . . . Swap 3 | 1 2 . . Drop 3 | 2 1 . . Fire 44 | 20 24 . . Melee 8 | . . . 8 Ram 2 | . . 1 1 Kick . | . . . . Crush . | . . . . Escape Stasis . | . . . . Rewire 1 | . . . 1 Trap . | . . . . Miscellaneous . | . . . . Route ------- -11/Scrapyard -10/Materials -10/Subcaves -9/Recycling History --------- Turn | Location | Event 5 | -11/Scrapyard | Discovered new exit (range 16) 204 | -11/Scrapyard | Entered Materials 312 | -10/Materials | Build established: Mutant 484 | -10/Materials | Discovered new exit (range 2) 485 | -10/Materials | Entered Subcaves 552 | -10/Subcaves | Ambushed by swarm of Subdwellers 613 | -10/Subcaves | Lost 3 allies 616 | -10/Subcaves | Discovered new exit (range 13) 624 | -10/Subcaves | Core integrity fell below 50% 630 | -10/Subcaves | Entered Recycling 640 | -9/Recycling | Found Scrap Engine 659 | -9/Recycling | Lost 6 parts (1p2n1u2w) 730 | -9/Recycling | Core integrity fell below 20% 800 | -9/Recycling | Destroyed by Y-45 Defender with Heavy Assault Rifle Last Messages --------------- Matter reserves: 3 Inventory: Empty Connecting with Recycling Unit... >>Recycling(Process) Analyzing inventory... Recycling at 100% efficiency: Particle Gun (6) Y-45 Defender springs to life. Jacked Y-45 Defender... >>parse_system Reading system data... Datajack destroyed. Critical hit (Burn: +37). Attempting to rewire R-06 Scavenger. R-06 Scavenger is unpowered. Critical hit (Burn: +37). Slammed into Y-45 Defender. Com. Wheel destroyed. Wheel destroyed. Acquired 23 matter. Map ----- +----------------------------------------------------+ | | | | | | | | | | | | | | | | | | | ?????????????????????????????????????? | | ?????????????????????????????????????? | | ?????????????????????????????????????? | | ?????????????????????????????????????? | | ??????????????##########?????????????? | | ??????????????# #?????????????? | | ??############# """ #?????????????? | | ??# # """ #?????????????? | | ??# ! # """ #?????????????? | | ??# %! ! # #?????????????? | | ??#! [# """ #?????????????? | | ??# ! # """ #?????????????? | | ??# ! # """ #???????#####?? | | ??# [ ! [ # #???????#"""#?? | | ??# #+###+############"Y"### | | ??# # Y | | ??# @/ | | ??# # | | ??# ] # #################### | | ??# # #??????????????????? | | ??############# #??????????????????? | | ??????????????# #??????????????????? | | ??????????????# #??????????????????? | | ??????????????# #??????????????????? | | ??????????????# #??????????????????? | | ??????????????# #??????????????????? | | ??????????????# #??????????????????? | | ??????????????# #??????????????????? | | ?????????????? ??????????????????? | | ?????????????? ??????????????????? | | ??????????????? ??????????????????? | | ??????????????? ???????????????????? | | ?????????????????????????????????????? | | ?????????????????????????????????????? | | ?????????????????????????????????????? | | ?????????????????????????????????????? | | ?????????????????????????????????????? | | ?????????????????????????????????????? | | ?????????????????????????????????????? | | ?????????????????????????????????????? | | ?????????????????????????????????????? | +----------------------------------------------------+ Best States ------------- Heat Dissipation 25 Energy Generation 10 Energy Capacity 250 Matter Stores 300 Matter Capacity 300 Sight Range 16 Terrain Scan Density 10 Weapon Shielding 33 Evasion (%) 44 Item Schematics ----------------- Axe | -9/Recycling | Hacked Robot Schematics ------------------ None Fabricated ------------ Nothing Alien Tech Used ----------------- None Achievements -------------- Fist Fight Challenges ------------ None Game ------ Seed DisposableNovaFemtoactuators Manual? 0 Play Time 00:12:39 Cumulative 2.7 hours Start 2024.03.15 @ 18:14:00 End 2024.03.15 @ 18:26:09 Sessions 1 Manual Loads 0 Difficulty Rogue Special Mode None Game No. 5 Rogue 5 Adventurer 0 Explorer 0 Win Type - Total 0 Types 0/0/0/0/0/0/0/0/0 Lore% 3 Gallery% 6 Achievement% 7 Wizard Run 0 Options --------- Layout 1 ASCII 0 Keyboard 1 Movement Numpad Keybinds 0 Fullscreen 1 Font 32/SmallcapsGlow Map View 50x35 Zoom Use 0% Tactical HUD 0 Map Filters NONE Filters NONE Steam 1 RUN: 0cb8ccd0-9238-4f53-8d70-2d6b5062ac95